bitfinex/quotes_ETHUSD_20251006
["timestamp","ask_amount","ask_price","bid_price","bid_amount"]
[1759737231547,2.6134,4532.4,4532.3,0.95367057]
[1759737231849,2.6134,4532.4,4532.3,0.001]
[1759737233348,4.81973659,4532.4,4532.3,0.001]
[1759737233644,5.89063659,4532.4,4532.3,0.001]
[1759737234932,5.45333659,4532.4,4532.3,0.001]
[1759737235129,8.29063659,4532.4,4532.3,0.001]
[1759737240058,12.51063659,4532.4,4532.3,0.001]
[1759737241059,12.07333659,4532.4,4532.3,0.001]
[1759737241255,12.51063659,4532.4,4532.3,0.001]
[1759737242455,12.51263659,4532.4,4532.3,0.001]
[1759737243558,12.07533659,4532.4,4532.3,0.001]
[1759737244447,9.57153659,4532.4,4532.3,0.001]
[1759737244658,7.3652,4532.4,4532.3,0.4579]
[1759737244830,9.8682,4532.4,4532.3,0.4579]
[1759737245244,12.07453659,4532.4,4532.3,0.4579]
[1759737245855,9.8682,4532.4,4532.3,0.4579]
[1759737246059,9.67453659,4532.4,4532.3,0.4579]
[1759737246838,9.67453659,4532.4,4532.3,0.001]
[1759737247779,2.6146,4532.4,4532.3,0.4579]
[1759737248443,4.82093659,4532.4,4532.3,0.4579]
[1759737248863,2.6146,4532.4,4532.3,0.4579]
[1759737249547,2.6154,4532.4,4532.3,2.66428527]
[1759737249748,2.505,4532.4,4532.3,0.94497406]
[1759737249946,0.002,4532.4,4532.3,3.15135933]
[1759737254865,0.002,4532.4,4532.3,0.94497406]
[1759737255043,0.002,4532.4,4532.3,0.001]
[1759737255238,0.002,4532.4,4532.3,0.4579]
[1759737256046,2.20833659,4532.4,4532.3,0.001]
[1759737256849,4.71133659,4532.4,4532.3,0.001]
[1759737260455,2.505,4532.4,4532.3,0.001]
[1759737260855,0.1124,4532.4,4532.3,2.66428527]
[1759737261060,0.1124,4532.4,4532.3,3.15136488]
[1759737261357,0.002,4532.4,4532.3,3.17342873]
[1759737262499,0.002,4532.4,4532.3,3.15136488]
[1759737263392,0.002,4532.4,4532.3,0.94497961]
[1759737263989,0.002,4532.4,4532.3,0.48807961]
[1759737264201,0.002,4532.4,4532.3,0.001]
[1759737264899,0.1124,4532.4,4532.3,0.001]
[1759737266927,2.31873659,4532.4,4532.3,0.001]
[1759737268118,0.1124,4532.4,4532.3,0.001]
[1759737269120,0.1116,4532.4,4532.3,0.001]
[1759737270318,0.1116,4532.4,4532.3,0.4579]
[1759737271886,0.1116,4532.4,4532.3,0.001]
[1759737273014,2.31793659,4532.4,4532.3,0.001]
[1759737273911,4.81993659,4532.4,4532.3,0.001]
[1759737274408,6.63068681,4532.4,4532.3,0.001]
[1759737274589,9.03068681,4532.4,4532.3,0.001]
[1759737275208,9.1190033,4532.4,4532.3,0.001]
[1759737280408,12.9083033,4532.4,4532.3,0.001]
[1759737284018,13.3390033,4532.4,4532.3,0.001]
[1759737286118,16.52497345,4532.4,4532.3,0.001]
[1759737288827,12.9083033,4532.4,4532.3,0.001]
[1759737293509,12.9075033,4532.4,4532.3,0.001]
[1759737296131,12.81918681,4532.4,4532.3,0.001]
[1759737296619,19.89918681,4532.4,4532.3,0.001]
[1759737298801,8.48878681,4532.4,4532.3,0.001]
[1759737299003,8.91807208,4532.4,4532.3,0.001]
[1759737299234,9.35017208,4532.4,4532.3,0.001]
[1759737299897,2.84037479,4531.5,4531.4,1e-08]
[1759737300098,10.92834494,4531.5,4531.4,1e-08]
[1759737300302,12.68204494,4531.5,4531.4,1e-08]
[1759737300534,12.02163227,4531.5,4531.4,1e-08]
[1759737302231,11.59093227,4531.5,4531.4,1e-08]
[1759737302406,12.33738249,4531.5,4531.4,1e-08]
[1759737302625,5.98682501,4531.5,4531.4,1e-08]
[1759737302828,7.74237479,4531.5,4531.4,0.43030001]
[1759737303147,7.74237479,4531.5,4531.4,1e-08]
[1759737303727,8.42634494,4531.5,4531.4,1e-08]
[1759737303948,10.92834494,4531.5,4531.4,1e-08]
[1759737304356,8.42634494,4531.5,4531.4,1e-08]
[1759737304655,10.92834494,4531.5,4531.4,1e-08]
[1759737305230,5.24037479,4531.5,4531.4,0.43030001]
[1759737305626,3.0336,4531.5,4531.4,0.43030001]
[1759737305831,5.34237479,4531.5,4531.4,0.43030001]
[1759737306030,7.74237479,4531.5,4531.4,0.43030001]
[1759737306655,4.902,4531.5,4531.4,0.43030001]
[1759737307760,2.502,4531.5,4531.4,0.43030001]
[1759737307933,2.502,4531.5,4531.4,0.69412608]
[1759737308133,2.20658834,4531.9,4531.4,0.43030001]
[1759737308335,2.502,4531.8,4531.5,0.4303]
[1759737308961,0.1104,4531.6,4531.4,1e-08]
[1759737309267,2.502,4531.5,4531.4,2.22889173]
[1759737309446,2.502,4531.5,4531.4,2.2068235]
[1759737309773,2.502,4531.5,4531.4,2.87997408]
[1759737310067,2.502,4531.5,4531.4,2.85790585]
[1759737310636,2.502,4531.5,4531.4,0.65108236]
[1759737310835,2.502,4531.5,4531.4,2.6371235]
[1759737311462,2.502,4531.5,4531.4,0.43030001]
[1759737311833,2.502,4531.5,4531.4,1e-08]
[1759737312035,2.502,4531.5,4531.4,0.43030001]
[1759737313166,2.502,4531.5,4531.4,1e-08]
[1759737313167,4.70877479,4531.5,4531.4,1e-08]
[1759737313342,7.74237479,4531.5,4531.4,1e-08]
[1759737313654,8.19407479,4531.5,4531.4,1e-08]
[1759737313877,7.74237479,4531.5,4531.4,1e-08]
[1759737314858,5.24037479,4531.5,4531.4,0.43030001]
[1759737315061,7.74237479,4531.5,4531.4,0.43030001]
[1759737315362,7.74237479,4531.5,4531.4,1e-08]
[1759737315936,3.1356,4531.5,4531.4,1e-08]
[1759737316237,5.34237479,4531.5,4531.4,1e-08]
[1759737317962,5.34157479,4531.5,4531.4,1e-08]
[1759737318865,2.5012,4531.5,4531.4,1e-08]
[1759737319043,4.70797479,4531.5,4531.4,1e-08]
[1759737319247,2.5012,4531.5,4531.4,0.43030001]
[1759737320254,2.20668006,4531.7,4531.4,0.43030001]
[1759737320439,2.502,4531.6,4531.5,0.4303]
[1759737320637,2.502,4531.6,4531.4,1e-08]
[1759737321164,2.502,4531.6,4531.5,0.4303]
[1759737321165,4.70873948,4531.6,4531.5,0.4303]
[1759737322052,2.502,4531.6,4531.5,0.4303]
[1759737322263,2.20667934,4531.7,4531.5,0.4303]
[1759737322473,4.7087261,4531.6,4531.5,0.4303]
[1759737323468,4.7087261,4531.6,4531.4,1e-08]
[1759737323469,2.20677479,4531.5,4531.4,1e-08]
[1759737323645,2.502,4531.6,4531.4,1e-08]
[1759737323646,4.7087261,4531.6,4531.4,1e-08]
[1759737323844,4.7087261,4531.6,4531.4,0.43030001]
[1759737324240,2.502,4531.6,4531.5,0.4303]
[1759737324467,4.7087261,4531.6,4531.5,0.4303]
[1759737324975,2.502,4531.6,4531.5,0.4303]
[1759737325853,3.0336,4531.9,4531.5,0.4303]
[1759737326058,2.20672148,4531.7,4531.4,1e-08]
[1759737326366,2.502,4531.6,4531.5,0.4303]
[1759737327151,2.502,4531.6,4531.5,2.63707479]
[1759737327471,2.502,4531.6,4531.5,3.12157389]
[1759737329876,2.6114,4531.8,4531.7,2.2066774]
[1759737330081,2.501,4532.0,4531.6,0.4303]
[1759737330283,2.6114,4532.0,4531.7,0.4303]
[1759737330577,2.6114,4532.0,4531.8,0.4303]
[1759737330743,0.002,4532.4,4531.5,0.001]
[1759737330744,0.002,4532.4,4531.9,0.4523658]
[1759737330943,0.002,4532.4,4532.0,2.20653133]
[1759737331255,0.002,4532.4,4532.1,0.28795453]
[1759737331450,0.002,4532.4,4532.3,2.20638527]
[1759737331649,0.002,4532.4,4532.1,0.28795453]
[1759737331650,0.002,4532.4,4532.2,0.4303]
[1759737331875,0.002,4532.4,4531.9,2.20657867]
[1759737332182,0.002,4532.4,4532.0,2.63681354]
[1759737332345,0.002,4532.4,4532.1,2.90046334]
[1759737332548,0.002,4532.4,4532.2,0.4303]
[1759737333451,0.002,4532.4,4532.3,0.45866385]
[1759737333768,0.002,4532.4,4532.3,0.4366]
[1759737334496,0.002,4532.4,4532.3,2.64298527]
[1759737334659,0.002,4532.4,4532.3,2.93365193]
[1759737336487,0.002,4533.2,4532.6,2.20623924]
[1759737336795,0.002,4533.2,4533.1,2.20599589]
[1759737336958,0.002,4533.2,4533.1,7.12905584]
[1759737337161,1e-08,4533.4,4533.3,2.20589857]
[1759737337494,1e-08,4533.4,4533.3,5.60236843]
[1759737337695,1e-08,4533.4,4533.3,8.67385884]
[1759737337896,1e-08,4533.4,4533.3,8.56116843]
[1759737338195,1e-08,4533.4,4533.3,23.06116843]
[1759737340080,1e-08,4533.4,4533.3,20.56016843]
[1759737340308,1e-08,4533.4,4533.3,23.06016843]
[1759737340885,1e-08,4533.4,4533.3,23.17056843]
[1759737341416,1e-08,4533.4,4533.3,43.67056843]
[1759737342011,1e-08,4533.4,4533.3,41.17056843]
[1759737342219,1e-08,4533.4,4533.3,43.67056843]
[1759737342507,0.00120001,4533.7,4533.6,2.2057526]
[1759737342685,0.00120001,4533.7,4533.6,4.37424441]
[1759737342877,0.00120001,4533.7,4533.6,4.94244441]
[1759737343283,0.00120001,4533.7,4533.6,7.44244441]
[1759737343513,0.00120001,4533.7,4533.6,4.48464441]
[1759737343694,0.00120001,4533.7,4533.6,4.83204441]
[1759737344700,0.00120001,4533.7,4533.6,2.6635526]
[1759737344903,0.00120001,4533.7,4533.6,17.18561012]
[1759737345206,0.00120001,4533.7,4533.6,14.5]
[1759737345410,0.00120001,4533.7,4533.6,16.7057526]
[1759737346087,0.00120001,4533.7,4533.6,14.5]
[1759737346289,0.00120001,4533.7,4532.6,0.4578]
[1759737346500,0.00120001,4533.7,4533.1,2.20596977]
[1759737346810,0.00120001,4533.7,4533.2,14.5]
[1759737347011,0.00120001,4533.7,4533.2,16.70592738]
[1759737347797,0.00120001,4533.7,4533.2,14.5]
[1759737348310,0.00120001,4533.7,4533.2,16.70594068]
[1759737348505,0.00120001,4533.7,4533.3,2.2058941]
[1759737348711,0.00120001,4533.7,4533.2,14.5]
[1759737349023,0.4706,4533.6,4532.1,0.4578]
[1759737349226,2.20585604,4533.4,4532.4,2.20632221]
[1759737349422,2.67635374,4533.6,4532.5,14.5]
[1759737349624,2.20580125,4533.5,4532.5,14.5]
[1759737350122,2.20580125,4533.5,4532.6,2.20623924]
[1759737350524,0.00120001,4533.7,4532.7,0.4798619]
[1759737350731,0.00120001,4533.7,4533.3,2.20589612]
[1759737351026,0.00120001,4533.7,4533.4,0.02205849]
[1759737352711,0.00120001,4533.7,4533.2,2.20591046]
[1759737353030,0.00120001,4533.7,4533.0,2.20603936]
[1759737353532,0.1104,4533.5,4533.3,2.20589542]
[1759737354100,0.1104,4533.5,4533.4,0.02205849]
[1759737354314,0.1104,4533.5,4533.1,2.20599589]
[1759737354604,0.1104,4533.5,4533.3,2.20589857]
[1759737355014,0.1104,4533.5,4533.4,2.2279084]
[1759737356550,0.1104,4533.5,4533.4,0.02205849]
[1759737356834,0.1104,4533.5,4533.3,2.20588773]
[1759737357137,0.1104,4533.5,4533.0,0.4578]
[1759737357345,0.1104,4533.5,4533.1,4.17061589]
[1759737357707,0.1104,4533.5,4533.4,2.20584991]
[1759737357907,0.1104,4533.5,4533.4,2.2279084]
[1759737358109,0.00120001,4533.7,4533.5,2.20579273]
[1759737358308,0.11160001,4533.7,4533.6,0.02205752]
[1759737359715,0.11160001,4533.7,4533.6,2.22781012]
[1759737359915,0.11160001,4533.7,4533.6,0.92322197]
[1759737360132,0.11160001,4533.7,4533.6,2.68561012]
[1759737360337,0.00120001,4533.7,4533.6,2.68561012]
[1759737361629,0.00120001,4533.7,4533.6,2.7739526]
[1759737362826,0.00120001,4533.7,4533.6,17.2739526]
[1759737366140,0.00120001,4533.7,4533.6,16.8161526]
[1759737366342,0.00120001,4533.7,4533.6,18.71835032]
[1759737366835,0.00040001,4533.7,4533.6,19.15035032]
[1759737367044,0.00040001,4533.7,4533.6,18.71835032]
[1759737367450,0.00040001,4533.7,4533.6,4.21835032]
[1759737367647,0.00040001,4533.7,4533.6,2.3161526]
[1759737367823,0.00040001,4533.7,4533.4,2.20584991]
[1759737368144,0.00040001,4533.7,4533.4,2.20584474]
[1759737368352,0.00040001,4533.7,4533.3,0.001]
[1759737368526,0.1104,4533.6,4533.3,0.001]
[1759737368945,0.1104,4533.6,4533.5,2.20580125]
[1759737369322,0.00040001,4533.7,4533.5,2.20580125]
[1759737369323,0.00040001,4533.7,4533.6,4.6057526]
[1759737369534,0.00040001,4533.7,4533.6,5.0377526]
[1759737369735,0.00040001,4533.7,4533.6,4.7047526]
[1759737370232,0.00040001,4533.7,4533.6,5.1367526]
[1759737370429,0.00040001,4533.7,4533.6,3.22423753]
[1759737371025,0.00040001,4533.7,4533.6,3.65623753]
[1759737372249,0.00040001,4533.7,4533.3,0.001]
[1759737372634,0.00040001,4533.7,4533.3,2.20689474]
[1759737372834,0.00040001,4533.7,4533.5,2.20576232]
[1759737373055,0.00040001,4533.7,4533.3,0.001]
[1759737373433,0.00040001,4533.7,4533.3,2.20688916]
[1759737373753,0.00040001,4533.7,4533.4,2.20581345]
[1759737374451,0.00040001,4533.7,4533.3,0.001]
[1759737374750,0.00040001,4533.7,4533.5,2.20576077]
[1759737375125,0.00040001,4533.7,4533.6,2.2057526]
[1759737375830,0.00040001,4533.7,4533.3,0.2411]
[1759737376442,0.00040001,4533.7,4533.4,2.20584991]
[1759737376629,0.00040001,4533.7,4533.4,2.20583524]
[1759737377053,0.00040001,4533.7,4533.3,0.2411]
[1759737377241,0.47340001,4533.7,4533.3,0.001]
[1759737377442,0.473,4533.6,4533.3,0.001]
[1759737377950,0.00040001,4533.7,4533.3,0.001]
[1759737377951,0.473,4533.5,4533.3,0.001]
[1759737378150,0.473,4533.4,4533.3,0.001]
[1759737379157,0.00040001,4533.7,4533.3,0.001]
[1759737379358,0.1104,4533.4,4533.3,0.001]
[1759737380437,0.00040001,4533.7,4533.3,0.65369909]
[1759737380629,0.00040001,4533.7,4533.5,2.20580125]
[1759737380833,0.00040001,4533.7,4533.6,2.2057526]
[1759737381254,0.00040001,4533.7,4533.6,2.6377526]
[1759737384540,0.00040001,4533.7,4533.6,17.1377526]
[1759737384765,0.00040001,4533.7,4533.6,17.1387526]
[1759737385254,0.00040001,4533.7,4533.6,19.06932201]
[1759737387163,0.00040001,4533.7,4533.6,21.56832201]
[1759737387369,0.002,4534.1,4534.0,2.205558]
[1759737387535,0.002,4534.1,4534.0,4.704558]
[1759737387735,0.002,4534.1,4534.0,9.51077658]
[1759737388057,0.002,4534.1,4534.0,7.536558]
[1759737388246,0.002,4534.1,4534.0,22.036558]
[1759737389361,0.002,4534.1,4534.0,16.9]
[1759737389539,0.002,4534.1,4534.0,19.105558]
[1759737390362,0.002,4534.1,4534.0,19.215958]
[1759737390577,0.002,4534.1,4534.0,21.81644981]
[1759737391147,0.002,4534.1,4534.0,21.38444981]
[1759737391476,0.0012,4534.1,4534.0,23.88244981]
[1759737391645,0.0012,4534.1,4534.0,16.77889181]
[1759737391849,0.0012,4534.1,4534.0,16.705558]
[1759737392059,0.0012,4534.1,4534.0,2.205558]
[1759737392248,0.0012,4534.1,4533.9,2.20559855]
[1759737392450,0.0012,4534.1,4534.0,2.205558]
[1759737393056,0.0012,4534.1,4533.9,2.20557002]
[1759737393267,0.0012,4534.1,4534.0,2.205558]
[1759737404403,0.0012,4534.1,4534.0,3.80977065]
[1759737404575,0.0012,4534.1,4534.0,4.35291507]
[1759737405303,0.0012,4534.1,4534.0,4.37497065]
[1759737405599,0.0012,4534.1,4534.0,6.77497065]
[1759737405794,0.0012,4534.1,4534.0,21.25291507]
[1759737406167,0.0012,4534.1,4534.0,6.75291507]
[1759737410477,0.002,4534.4,4534.0,6.75291507]
[1759737410678,1e-08,4534.4,4534.3,4.60541208]
[1759737410970,1e-08,4534.4,4534.3,27.60341208]
[1759737411403,1e-08,4534.4,4534.3,28.05821208]
[1759737411993,1e-08,4534.4,4534.3,2.20541208]
[1759737412201,1e-08,4534.4,4534.3,4.70241208]
[1759737412512,1e-08,4534.4,4534.3,7.80424152]
[1759737412670,1e-08,4534.4,4534.3,2.4]
[1759737412996,0.56600001,4534.4,4533.6,2.498]
[1759737413172,0.56600001,4534.4,4534.2,2.20544562]
[1759737413494,0.11040001,4534.4,4534.2,2.20544562]
[1759737413701,0.11040001,4534.4,4534.3,2.20541208]
[1759737414073,0.56600001,4534.4,4534.3,2.20541208]
[1759737414388,1e-08,4534.4,4534.1,2.20550733]
[1759737414571,1e-08,4534.4,4534.2,2.20546072]
[1759737415276,1e-08,4534.4,4534.1,0.27707073]
[1759737415483,1e-08,4534.4,4534.3,2.20541208]
[1759737415703,1e-08,4534.4,4533.8,0.1104]
[1759737415903,0.5652,4534.3,4533.8,0.1104]
[1759737416102,0.1104,4534.3,4533.8,2.5104]
[1759737416478,0.1104,4534.3,4533.9,2.20560665]
[1759737416799,0.1104,4534.3,4534.0,2.20553684]
[1759737416974,0.1104,4534.3,4533.8,0.1104]
[1759737417173,0.1104,4534.0,4533.6,0.001]
[1759737417899,0.566,4534.0,4533.6,0.001]
[1759737418480,0.1104,4534.0,4533.7,2.20570395]
[1759737418680,0.4556,4533.9,4533.6,0.001]
[1759737419291,0.4556,4533.9,4533.6,2.20674926]
[1759737420307,0.1104,4534.0,4533.6,0.001]
[1759737420612,0.1104,4534.0,4533.9,2.20560665]
[1759737421378,1e-08,4534.4,4534.3,2.20541208]
[1759737421806,1e-08,4534.4,4534.2,2.20545474]
[1759737422008,1e-08,4534.4,4534.0,2.6603295]
[1759737422310,1e-08,4534.4,4534.3,2.20541208]
[1759737423017,1e-08,4534.4,4533.9,0.1104]
[1759737423223,1e-08,4534.4,4534.0,0.02205558]
[1759737423397,0.1104,4534.2,4533.7,0.02205703]
[1759737423596,0.1104,4534.2,4533.7,0.57247273]
[1759737423797,0.1104,4534.2,4533.8,0.4737]
[1759737424021,1e-08,4534.4,4533.9,0.02205606]
[1759737424213,1e-08,4534.4,4534.3,2.20541208]
[1759737424592,1e-08,4534.4,4534.1,2.2054912]
[1759737424794,1e-08,4534.4,4534.1,0.49952219]
[1759737425002,1e-08,4534.4,4534.1,2.20549597]
[1759737425197,1e-08,4534.4,4534.0,2.31594679]
[1759737425396,1e-08,4534.4,4534.1,2.20550936]
[1759737425617,1e-08,4534.4,4534.0,0.1104]
[1759737425818,1e-08,4534.4,4534.3,2.20541208]
[1759737426213,1e-08,4534.4,4534.3,2.65754422]
[1759737427224,1e-08,4534.4,4534.1,0.1104]
[1759737427424,1e-08,4534.4,4534.2,2.20546072]
[1759737427726,1e-08,4534.4,4534.1,2.31590512]
[1759737428219,1e-08,4534.4,4534.3,2.20541208]
[1759737428724,1e-08,4534.4,4534.3,2.2274662]
[1759737429021,1e-08,4534.4,4534.3,2.72917297]
[1759737429224,1e-08,4534.4,4534.3,2.70711885]
[1759737429418,1e-08,4534.4,4534.1,0.1104]
[1759737429622,1e-08,4534.4,4534.3,2.20541208]
[1759737429803,1e-08,4534.4,4534.2,2.20544924]
[1759737429999,1e-08,4534.4,4533.6,0.001]
[1759737430197,0.1104,4534.1,4533.6,2.20674512]
[1759737430498,0.1104,4534.1,4533.7,0.23171451]
[1759737430714,0.1104,4534.1,4533.8,2.20561304]
[1759737430921,0.1104,4534.1,4533.9,2.2055691]
[1759737431324,0.1104,4534.1,4533.6,0.001]
[1759737431520,0.1104,4534.1,4533.7,2.20570395]
[1759737431821,0.546,4534.1,4533.6,0.001]
[1759737432028,0.546,4534.1,4533.7,2.20569877]
[1759737432229,0.1104,4534.1,4533.6,0.001]
[1759737432396,0.1104,4534.1,4534.0,2.205558]
[1759737435017,0.1104,4534.1,4533.8,2.20562438]
[1759737435218,0.1104,4534.1,4533.7,2.20569208]
[1759737435412,0.546,4534.1,4533.7,2.20569208]
[1759737435608,0.546,4534.1,4533.6,0.001]
[1759737436433,0.1104,4534.1,4533.6,2.20670757]
[1759737436637,0.1104,4534.1,4533.6,0.001]
[1759737436933,0.1104,4534.1,4533.7,2.20570091]
[1759737437426,0.546,4534.1,4534.0,0.001]
[1759737437841,0.1104,4534.1,4534.0,0.001]
[1759737438046,2.75150936,4534.1,4534.0,0.001]
[1759737438337,3.24720169,4534.1,4534.0,0.001]
[1759737438511,3.88080169,4534.1,4534.0,0.001]
[1759737440344,6.37700169,4534.1,4534.0,0.001]
[1759737445744,3.88000169,4534.1,4534.0,0.001]
[1759737446046,6.37700169,4534.1,4534.0,0.001]
[1759737447651,3.10229233,4534.1,4534.0,0.001]
[1759737447848,3.241,4534.1,4534.0,0.001]
[1759737448053,5.44650936,4534.1,4534.0,0.001]
[1759737448613,1e-08,4534.4,4534.0,0.001]
[1759737448813,2.31590936,4534.1,4534.0,0.001]
[1759737449621,0.1104,4534.1,4534.0,0.001]
[1759737449823,2.31590936,4534.1,4534.0,0.001]
[1759737450042,0.1104,4534.1,4534.0,0.4747]
[1759737450229,2.31590936,4534.1,4534.0,0.4747]
[1759737450426,0.1104,4534.1,4534.0,0.4747]
[1759737451427,0.1104,4534.1,4534.0,0.001]
[1759737451624,2.31590936,4534.1,4534.0,0.001]
[1759737452027,0.1104,4534.1,4534.0,0.001]
[1759737452439,0.1104,4534.1,4534.0,0.4747]
[1759737452639,2.31590936,4534.1,4534.0,0.4747]
[1759737452856,4.81290936,4534.1,4534.0,0.4747]
[1759737453065,0.1104,4534.1,4534.0,0.001]
[1759737453253,2.6074,4534.1,4534.0,0.001]
[1759737453552,4.81290936,4534.1,4534.0,0.001]
[1759737454144,2.6074,4534.1,4534.0,0.001]
[1759737455040,0.1104,4534.1,4534.0,0.001]
[1759737455240,4.81290936,4534.1,4534.0,0.001]
[1759737455439,2.31590936,4534.1,4534.0,0.001]
[1759737455658,4.81490936,4534.1,4534.0,0.001]
[1759737456360,2.6094,4534.1,4534.0,0.001]
[1759737456666,4.81490936,4534.1,4534.0,0.001]
[1759737457049,2.6094,4534.1,4534.0,0.001]
[1759737458251,2.6094,4534.1,4534.0,0.443]
[1759737461061,2.6094,4534.1,4534.0,0.46505558]
[1759737461566,2.6094,4534.1,4534.0,2.93767904]
[1759737461769,0.002,4534.1,4534.0,2.93767904]
[1759737462142,0.002,4534.1,4534.0,2.91562346]
[1759737462972,0.002,4534.1,4534.0,17.41562346]
[1759737464469,0.002,4534.1,4534.0,14.76806546]
[1759737464671,2.499,4534.1,4534.0,0.001]
[1759737464972,4.81410936,4534.1,4534.0,0.001]
[1759737465146,5.25530936,4534.1,4534.0,0.001]
[1759737466676,6.00138294,4534.1,4534.0,0.001]
[1759737468248,6.63498294,4534.1,4534.0,0.001]
[1759737469850,6.19378294,4534.1,4534.0,0.001]
[1759737470051,6.63498294,4534.1,4534.0,0.001]
[1759737472977,2.6086,4534.1,4534.0,0.001]
[1759737473378,4.81410936,4534.1,4534.0,0.001]
[1759737473778,0.1116,4534.1,4534.0,0.001]
[1759737473953,2.6086,4534.1,4534.0,0.001]
[1759737476782,0.1116,4534.1,4534.0,0.001]
[1759737477079,2.6086,4534.1,4534.0,0.001]
[1759737477282,5.13832936,4534.1,4534.0,0.001]
[1759737477477,2.64132936,4534.1,4534.0,0.001]
[1759737477680,5.13832936,4534.1,4534.0,0.001]
[1759737478783,2.64132936,4534.1,4534.0,0.001]
[1759737478956,4.81410936,4534.1,4534.0,0.001]
[1759737480780,9.03410936,4534.1,4534.0,0.001]
[1759737484364,6.8286,4534.1,4534.0,0.001]
[1759737484686,9.03410936,4534.1,4534.0,0.001]
[1759737487288,6.8286,4534.1,4534.0,0.4594]
[1759737487789,9.03410936,4534.1,4534.0,0.4594]
[1759737488486,4.3316,4534.1,4534.0,0.4594]
[1759737488788,6.8286,4534.1,4534.0,0.4594]
[1759737489255,6.8278,4534.1,4534.0,0.4594]
[1759737489460,0.1108,4534.1,4534.0,0.4594]
[1759737489686,2.6078,4534.1,4534.0,0.4594]
[1759737489890,2.6078,4534.1,4534.0,0.72590534]
[1759737491771,2.6078,4534.1,4534.0,0.4594]
[1759737492172,4.81330936,4534.1,4534.0,0.001]
[1759737492779,2.6078,4534.1,4534.0,0.001]
[1759737493171,4.81330936,4534.1,4534.0,0.001]
[1759737494666,5.26730936,4534.1,4534.0,0.001]
[1759737494898,6.01458422,4534.1,4534.0,0.001]
[1759737495777,6.64818422,4534.1,4534.0,0.001]
[1759737495982,12.86901324,4534.1,4534.0,0.001]
[1759737498208,9.04818422,4534.1,4534.0,0.001]
[1759737500601,9.13646933,4534.1,4534.0,0.001]
[1759737501708,13.35646933,4534.1,4534.0,0.001]
[1759737501908,17.17729835,4534.1,4534.0,0.001]
[1759737503187,16.54207446,4534.1,4534.0,0.001]
[1759737504696,10.40546933,4534.1,4534.0,0.001]
[1759737504891,16.54107446,4534.1,4534.0,0.001]
[1759737505587,14.04507446,4534.1,4534.0,0.001]
[1759737505790,16.54107446,4534.1,4534.0,0.001]
[1759737506812,16.54207446,4534.1,4534.0,0.001]
[1759737507589,7.05644991,4533.4,4533.3,0.001]
[1759737507789,12.2333179,4533.4,4533.3,0.001]
[1759737507988,12.3437179,4533.4,4533.3,0.001]
[1759737508189,12.43201431,4533.4,4533.3,0.001]
[1759737508490,12.88601431,4533.4,4533.3,0.001]
[1759737510010,12.43201431,4533.4,4533.3,0.001]
[1759737511694,12.43201431,4533.4,4533.3,0.4594]
[1759737513812,12.43121431,4533.4,4533.3,0.4594]
[1759737514012,12.43121431,4533.4,4533.3,0.001]
[1759737514717,16.04741944,4533.4,4533.3,0.001]
[1759737515096,15.61681944,4533.4,4533.3,0.001]
[1759737515701,12.43121431,4533.4,4533.3,0.001]
[1759737515902,12.43121431,4533.4,4533.3,0.4556]
[1759737516924,9.65434632,4533.4,4533.3,0.001]
[1759737517099,12.15134632,4533.4,4533.3,0.4556]
[1759737518206,12.06304991,4533.4,4533.3,0.4556]
[1759737518710,9.56604991,4533.4,4533.3,0.4556]
[1759737519021,12.06304991,4533.4,4533.3,0.4556]
[1759737520139,9.56604991,4533.4,4533.3,0.4556]
[1759737520427,12.06304991,4533.4,4533.3,0.4556]
[1759737521327,9.56604991,4533.4,4533.3,0.001]
[1759737521636,12.06097259,4533.4,4533.3,0.001]
[1759737522130,12.14926452,4533.4,4533.3,0.001]
[1759737528333,19.22926452,4533.4,4533.3,0.001]
[1759737530342,19.14097259,4533.4,4533.3,0.4556]
[1759737532350,19.14097259,4533.4,4533.3,0.001]
[1759737537448,19.2292653,4533.4,4533.3,0.001]
[1759737538353,19.2284653,4533.4,4533.3,0.001]
[1759737538730,19.2284653,4533.4,4533.3,0.4556]
[1759737538926,19.2284653,4533.4,4533.3,0.001]
[1759737539756,19.2304653,4533.4,4533.3,0.001]
[1759737540939,19.2304653,4533.4,4533.3,0.4556]
[1759737541452,19.2304653,4533.4,4533.3,0.001]
[1759737541657,0.002,4533.4,4533.3,0.4556]
[1759737541835,2.498,4533.4,4533.3,0.4556]
[1759737542355,4.70384991,4533.4,4533.3,0.4556]
[1759737543842,2.498,4533.4,4533.3,0.4556]
[1759737544162,4.70384991,4533.4,4533.3,0.4556]
[1759737544863,5.33744991,4533.4,4533.3,0.001]
[1759737546633,5.33744991,4533.4,4533.3,0.4512]
[1759737547964,5.33744991,4533.4,4533.3,0.001]
[1759737550643,5.33744991,4533.4,4533.3,0.4512]
[1759737550945,5.33744991,4533.4,4533.3,0.001]
[1759737551547,5.33744991,4533.4,4533.3,0.4512]
[1759737551768,5.44784991,4533.4,4533.3,0.001]
[1759737552071,10.43536301,4533.4,4533.3,0.001]
[1759737552475,14.05756814,4533.4,4533.3,0.001]
[1759737553468,13.62096814,4533.4,4533.3,0.001]
[1759737553665,14.05756814,4533.4,4533.3,0.001]
[1759737554373,16.02096814,4533.4,4533.3,0.001]
[1759737555473,12.92365942,4533.4,4533.3,0.001]
[1759737560457,12.149469,4533.4,4533.3,0.001]
[1759737562774,12.585269,4533.4,4533.3,0.001]
[1759737562955,12.148669,4533.4,4533.3,0.001]
[1759737564081,12.585269,4533.4,4533.3,0.001]
[1759737564374,12.148669,4533.4,4533.3,0.001]
[1759737564583,11.515069,4533.4,4533.3,0.001]
[1759737564878,12.148669,4533.4,4533.3,0.001]